fUST/lending_fUST_20240302
["ID","MTS","AMOUNT","RATE_DAILY","PERIOD"]
[316048318,1709337032974,-500.0,0.00020852,2]
[316048320,1709337032983,-500.0,0.00020852,2]
[316048322,1709337032992,-500.0,0.00020852,2]
[316048324,1709337033001,-500.0,0.00020852,2]
[316048326,1709337033010,-500.0,0.00020852,2]
[316048328,1709337033020,-500.0,0.00020852,2]
[316048330,1709337033029,-500.0,0.00020852,2]
[316048332,1709337033038,-500.0,0.00020852,2]
[316048334,1709337033047,-205.89982971,0.00020852,2]
[316048336,1709337033056,-500.0,0.00020852,2]
[316048338,1709337033065,-242.44,0.00020852,2]
[316048340,1709337033074,-500.0,0.00020852,2]
[316048342,1709337033083,-7992.86304663,0.00020852,2]
[316048344,1709337033095,-1099.35695337,0.00020852,2]
[316048346,1709337033104,-8635.61713286,0.00020852,2]
[316048860,1709337038608,-2433.05863856,0.00019475,2]
[316048862,1709337038617,-705.04,0.00020851,2]
[316048864,1709337038627,-456.60286714,0.00020852,2]
[316048865,1709337038636,-9092.22,0.00020852,2]
[316048867,1709337038646,-9092.22,0.00020852,2]
[316048869,1709337038656,-499.996,0.00020864,2]
[316048871,1709337038665,-500.0,0.00020864,2]
[316048872,1709337038674,-500.0,0.00020864,2]
[316048874,1709337038683,-500.0,0.00020864,2]
[316048876,1709337038692,-705.04,0.00020864,2]
[316048878,1709337038702,-500.0,0.00020865,2]
[316048879,1709337038712,-500.0,0.00020865,2]
[316048881,1709337038721,-9092.22,0.00020865,2]
[316048883,1709337038731,-500.0,0.00020882,2]
[316048884,1709337038740,-500.0,0.00020882,2]
[316048886,1709337038749,-500.0,0.00020882,2]
[316048888,1709337038759,-554.24,0.00020882,2]
[316048889,1709337038769,-500.0,0.00020882,2]
[316048891,1709337038778,-500.0,0.00020882,2]
[316048892,1709337038787,-500.0,0.00020882,2]
[316048894,1709337038796,-500.0,0.00020882,2]
[316048896,1709337038805,-910.78,0.00020882,2]
[316048897,1709337038814,-500.0,0.00020882,2]
[316048899,1709337038823,-500.0,0.00020882,2]
[316048901,1709337038832,-500.0,0.00020882,2]
[316048902,1709337038841,-190.81,0.00020882,2]
[316048904,1709337038850,-705.04,0.00020882,2]
[316048906,1709337038859,-7169.6234056,0.00020883,2]
[316048908,1709337038868,-37953.75939493,0.00020883,5]
[316048909,1709337038878,-235.79196065,0.00020883,2]
[316048911,1709337038887,-51170.64407727,0.00020883,5]
[316048913,1709337038896,-8234.00193465,0.0002089,2]
[316048914,1709337038905,-554.24,0.000209,2]
[316048916,1709337038915,-603.35659305,0.00020901,2]
[316048918,1709337038924,-482.68527444,0.00020901,2]
[316048920,1709337038933,-1827.09653387,0.00020901,2]
[316048921,1709337038942,-5298.9374955,0.00020901,2]
[316048923,1709337038951,-710.21646698,0.00020901,2]
[316048925,1709337038960,-956.62792624,0.00020901,2]
[316048927,1709337038969,-500.0,0.00020993,2]
[316048929,1709337038979,-500.0,0.00020994,2]
[316048931,1709337038988,-500.0,0.00020994,2]
[316048933,1709337038997,-500.0,0.00020999,2]
[316048935,1709337039007,-500.0,0.00020999,2]
[316048937,1709337039016,-705.04,0.00020999,2]
[316048939,1709337039026,-300.0,0.00021,9]
[316048941,1709337039035,-936.71267321,0.000219,2]
[316048943,1709337039044,-327.22275751,0.00022498,2]
[316048945,1709337039054,-157.14741337,0.00022499,2]
[316048946,1709337039063,-300.0,0.000225,10]
[316048947,1709337039072,-5065.78258731,0.00023,5]
[316048948,1709337039080,-1394.0,0.00023,2]
[316048949,1709337039089,-9092.22,0.00023039,2]
[316048950,1709337039098,-153.0,0.00023041,2]
[316048951,1709337039107,-3348.97,0.00023074,2]
[316048952,1709337039116,-1088.02,0.00023074,2]
[316048953,1709337039125,-1110.11,0.00023074,2]
[316048954,1709337039135,-936.8,0.00023074,2]
[316048955,1709337039144,-370.9000002,0.00023096,2]
[316048956,1709337039153,-202.0455997,0.00023096,2]
[316048957,1709337039163,-153.0,0.00023096,2]
[316048958,1709337039172,-200.7008514,0.00023096,2]
[316048959,1709337039181,-5000.0,0.00023245,5]
[316048960,1709337039190,-1000.0,0.00023251,5]
[316048961,1709337039200,-1000.0,0.00023251,5]
[316048962,1709337039209,-500.0,0.00023513,2]
[316048963,1709337039218,-500.0,0.00023513,2]
[316048964,1709337039228,-554.24,0.00023513,2]
[316048965,1709337039237,-500.0,0.00023513,2]
[316048966,1709337039246,-500.0,0.00023513,2]
[316048967,1709337039255,-500.0,0.00023513,2]
[316048968,1709337039265,-910.78,0.00023513,2]
[316048969,1709337039276,-500.0,0.00023513,2]
[316048970,1709337039286,-500.0,0.00023513,2]
[316048971,1709337039295,-705.04,0.00023513,2]
[316048972,1709337039304,-500.0,0.00023514,2]
[316048973,1709337039314,-500.0,0.00023514,2]
[316048974,1709337039323,-500.0,0.00023514,2]
[316048975,1709337039332,-500.0,0.00023514,2]
[316048976,1709337039341,-9092.22,0.00023514,2]
[316048977,1709337039351,-492.792,0.0002352,4]
[316048978,1709337039360,-492.793,0.0002352,4]
[316048979,1709337039369,-492.793,0.0002352,4]
[316048980,1709337039378,-492.792,0.0002352,4]
[316048981,1709337039387,-492.793,0.0002352,4]
[316048982,1709337039397,-300.05151244,0.00023644,2]
[316048983,1709337039406,-234.5338,0.00023879,2]
[316048984,1709337039416,-1212.5334735,0.0002388,2]
[316048985,1709337039424,-500.0,0.00023898,2]
[316048986,1709337039433,-500.0,0.00023898,2]
[316048989,1709337039532,-9092.22,0.00023898,2]
[316048990,1709337039541,-9092.22,0.00023898,2]
[316048992,1709337039552,-314.82,0.00023898,2]
[316048994,1709337039561,-705.04,0.00023898,2]
[316048996,1709337039571,-500.0,0.00023899,2]
[316048997,1709337039581,-500.0,0.00023899,2]
[316048999,1709337039590,-500.0,0.00023899,2]
[316049002,1709337039600,-500.0,0.00023899,2]
[316049004,1709337039609,-500.0,0.00023899,2]
[316049005,1709337039619,-554.24,0.00023899,2]
[316049007,1709337039628,-9092.22,0.00023899,2]
[316049009,1709337039637,-9092.22,0.00023899,2]
[316049011,1709337039646,-9092.22,0.00023899,2]
[316049013,1709337039656,-785.13633449,0.00023899,2]
[316049015,1709337039665,-1000.0,0.00023899,2]
[316049017,1709337039674,-785.13633446,0.00023899,2]
[316049019,1709337039683,-785.13633446,0.00023899,2]
[316049021,1709337039692,-785.13633446,0.00023899,2]
[316049023,1709337039701,-785.13633446,0.00023899,2]
[316049025,1709337039710,-785.13633446,0.000239,2]
[316049027,1709337039718,-785.13633446,0.000239,2]
[316049029,1709337039727,-785.13633446,0.000239,2]
[316049031,1709337039737,-785.13633446,0.000239,2]
[316049033,1709337039746,-785.13633446,0.000239,2]
[316049035,1709337039754,-500.0,0.00023934,2]
[316049037,1709337039763,-500.0,0.00023943,2]
[316049039,1709337039774,-500.0,0.00023943,2]
[316049041,1709337039783,-500.0,0.00023943,2]
[316049043,1709337039792,-910.78,0.00023943,2]
[316049045,1709337039801,-500.0,0.00023943,2]
[316049047,1709337039811,-151.0,0.00023974,2]
[316049049,1709337039820,-9092.22,0.00023993,2]
[316049051,1709337039829,-705.04,0.00023996,2]
[316049053,1709337039838,-500.0,0.00023997,2]
[316049055,1709337039847,-500.0,0.00023997,2]
[316049057,1709337039857,-500.0,0.00023997,2]
[316049059,1709337039866,-554.24,0.00023997,2]
[316049061,1709337039875,-9092.22,0.00023997,2]
[316049064,1709337039885,-9092.22,0.00023997,2]
[316049065,1709337039897,-712.56,0.00023997,2]
[316049067,1709337039906,-712.56,0.00023997,2]
[316049069,1709337039915,-712.56,0.00023997,2]
[316049071,1709337039925,-712.56,0.00023997,2]
[316049074,1709337039934,-712.56,0.00023997,2]
[316049075,1709337039943,-712.56,0.00023997,2]
[316049077,1709337039952,-712.56,0.00023997,2]
[316049079,1709337039961,-712.56,0.00023997,2]
[316049081,1709337039970,-712.56,0.00023997,2]
[316049083,1709337039979,-712.56,0.00023997,2]
[316049085,1709337039988,-705.04,0.00023997,2]
[316049087,1709337039998,-705.04,0.00023997,2]
[316049089,1709337040007,-705.04,0.00023997,2]
[316049091,1709337040016,-181.04497665,0.00023998,2]
[316049093,1709337040027,-214.11882186,0.00023998,2]
[316049095,1709337040036,-500.0,0.00023998,2]
[316049097,1709337040045,-221.01682508,0.00023998,2]
[316049099,1709337040054,-247.69144409,0.00023998,2]
[316049101,1709337040063,-429.41243131,0.00023998,2]
[316049103,1709337040072,-169.08281547,0.00023998,2]
[316049105,1709337040082,-595.5942201,0.00023998,2]
[316049107,1709337040091,-192.42679543,0.00023998,2]
[316049109,1709337040101,-200.08769918,0.00023998,2]
[316049111,1709337040110,-205.9203372,0.00023998,2]
[316049113,1709337040119,-207.97712337,0.00023998,2]
[316049115,1709337040128,-237.55164317,0.00023998,2]
[316049117,1709337040137,-155.2833993,0.00023998,2]
[316049119,1709337040146,-240.49886462,0.00023998,2]
[316049121,1709337040155,-198.6077684,0.00023998,2]
[316049123,1709337040164,-211.29666627,0.00023998,2]
[316049125,1709337040174,-1171.69564882,0.00023998,2]
[316049127,1709337040183,-508.84911227,0.00023998,2]
[316049129,1709337040192,-205.34317386,0.00023998,2]
[316049131,1709337040201,-179.22431201,0.00023998,2]
[316049133,1709337040211,-155.11478494,0.00023998,2]
[316049135,1709337040220,-523.71030091,0.00023998,3]
[316049137,1709337040229,-263.21964131,0.00023998,7]
[316049139,1709337040238,-267.21087934,0.00023998,2]
[316049141,1709337040246,-298.61808289,0.00023998,2]
[316049143,1709337040256,-159.87982714,0.00023998,2]
[316049145,1709337040265,-158.82433248,0.00023998,2]
[316049146,1709337040274,-10098.67327328,0.00023998,2]
[316049148,1709337040283,-282.54840723,0.00023998,2]
[316049150,1709337040291,-200.54373759,0.00023998,2]
[316049152,1709337040300,-400.0,0.00023998,2]
[316049154,1709337040309,-1992.97014433,0.00023998,2]
[316049156,1709337040318,-197.5903061,0.00023998,2]
[316049158,1709337040327,-155.07133281,0.00023998,2]
[316049160,1709337040336,-160.8702495,0.00023998,2]
[316049162,1709337040345,-173.93222042,0.00023998,2]
[316049164,1709337040354,-260.50442355,0.00023998,2]
[316049166,1709337040363,-176.94616105,0.00023998,2]
[316049168,1709337040372,-181.85299433,0.00023998,2]
[316049170,1709337040381,-198.32516916,0.00023998,2]
[316049172,1709337040390,-295.87885382,0.00023998,2]
[316049174,1709337040399,-202.60745563,0.00023998,2]
[316049176,1709337040409,-441.36557175,0.00023998,2]
[316049178,1709337040418,-1654.30348637,0.00023998,2]
[316049180,1709337040427,-219.95258249,0.00023998,2]
[316049182,1709337040435,-812.22817838,0.00023998,2]
[316049184,1709337040444,-508.95946117,0.00023998,2]
[316049186,1709337040454,-298.82206259,0.00023998,2]
[316049188,1709337040463,-562.47634038,0.00023998,2]
[316049190,1709337040472,-160.40689308,0.00023998,2]
[316049192,1709337040481,-280.37029672,0.00023998,2]
[316049194,1709337040490,-155.08219356,0.00023998,2]
[316049196,1709337040499,-200.0,0.00023998,2]
[316049198,1709337040508,-262.13577343,0.00023998,2]
[316049200,1709337040517,-155.22494037,0.00023998,2]
[316049202,1709337040528,-387.63160275,0.00023998,2]
[316049204,1709337040541,-263.31692282,0.00023998,2]
[316049206,1709337040551,-155.25921865,0.00023998,2]
[316049208,1709337040560,-478.73760126,0.00023998,2]
[316049210,1709337040570,-185.40185691,0.00023998,2]
[316049212,1709337040581,-282.52764566,0.00023998,2]
[316049214,1709337040592,-300.2820096,0.00023998,2]
[316049216,1709337040601,-11178.30135023,0.00023998,2]
[316049218,1709337040611,-200.01171087,0.00023998,2]
[316049221,1709337040625,-206.11586222,0.00023998,2]
[316049223,1709337040639,-162.11854936,0.00023998,2]
[316049226,1709337040650,-300.89577802,0.00023998,2]
[316049228,1709337040662,-200.85706016,0.00023998,2]
[316049230,1709337040673,-300.22703876,0.00023998,2]
[316049232,1709337040685,-324.72973504,0.00023998,2]
[316049235,1709337040696,-285.52119037,0.00023998,2]
[316049237,1709337040707,-224.33420636,0.00023998,2]
[316049240,1709337040717,-371.14057692,0.00023998,2]
[316049243,1709337040727,-201.7351925,0.00023998,2]
[316049245,1709337040739,-210.65214833,0.00023998,2]
[316049247,1709337040750,-20840.03860396,0.00023998,2]
[316049249,1709337040761,-214.38200257,0.00023998,2]
[316049252,1709337040772,-3348.97,0.00023998,2]
[316049254,1709337040783,-500.0,0.00023998,2]
[316049256,1709337040795,-255.49,0.00023998,2]
[316049258,1709337040806,-500.0,0.00023998,2]
[316049261,1709337040817,-1088.02,0.00023998,2]
[316049263,1709337040828,-554.24,0.00023998,2]
[316049265,1709337040839,-554.24,0.00023998,2]
[316049267,1709337040850,-1110.11,0.00023998,2]
[316049269,1709337040860,-9092.22,0.00023998,2]
[316049271,1709337040870,-9092.22,0.00023998,2]
[316049273,1709337040879,-9092.22,0.00023998,2]
[316049275,1709337040889,-9092.22,0.00023998,2]
[316049278,1709337040900,-9092.22,0.00023998,2]
[316049280,1709337040910,-9092.22,0.00023998,2]
[316049282,1709337040921,-9092.40435644,0.00023998,2]
[316049284,1709337040931,-500.0,0.00023998,2]
[316049286,1709337040942,-936.8,0.00023998,2]
[316049288,1709337040953,-500.0,0.00023998,2]
[316049291,1709337040963,-910.78,0.00023998,2]
[316049293,1709337040974,-500.0,0.00023998,2]
[316049295,1709337040985,-705.04,0.00023998,2]
[316049297,1709337040997,-1057.37395716,0.00023999,3]
[316049299,1709337041008,-1730.72092717,0.00023999,2]
[316049301,1709337041020,-500.0,0.00023999,2]
[316049304,1709337041030,-267.00132803,0.00023999,2]
[316049306,1709337041040,-188.32128173,0.00023999,2]
[316049308,1709337041049,-263.9703768,0.00023999,2]
[316049310,1709337041059,-3348.97,0.00023999,2]
[316049312,1709337041071,-3348.97,0.00023999,2]
[316049314,1709337041082,-3348.97,0.00023999,2]
[316049316,1709337041093,-3348.97,0.00023999,2]
[316049319,1709337041103,-3348.97,0.00023999,2]
[316049321,1709337041114,-3348.97,0.00023999,2]
[316049323,1709337041125,-3348.97,0.00023999,2]
[316049325,1709337041134,-3348.97,0.00023999,2]
[316049327,1709337041145,-3348.97,0.00023999,2]
[316049329,1709337041155,-3348.97,0.00023999,2]
[316049331,1709337041165,-3348.97,0.00023999,2]
[316049333,1709337041176,-3348.97,0.00023999,2]
[316049336,1709337041187,-3348.97,0.00023999,2]
[316049338,1709337041198,-3348.97,0.00023999,2]
[316049340,1709337041208,-3348.97,0.00023999,2]
[316049342,1709337041219,-3348.97,0.00023999,2]
[316049344,1709337041230,-3348.97,0.00023999,2]
[316049347,1709337041241,-3348.97,0.00023999,2]
[316049349,1709337041251,-3348.97,0.00023999,2]
[316049351,1709337041262,-3348.97,0.00023999,2]
[316049353,1709337041274,-3348.97,0.00023999,2]
[316049355,1709337041286,-3349.17210199,0.00023999,2]
[316049358,1709337041297,-500.0,0.00023999,2]
[316049360,1709337041308,-500.0,0.00023999,2]
[316049362,1709337041320,-1088.02,0.00023999,2]
[316049364,1709337041330,-500.0,0.00023999,2]
[316049366,1709337041340,-1088.02,0.00023999,2]
[316049368,1709337041350,-500.0,0.00023999,2]
[316049370,1709337041360,-1088.02,0.00023999,2]
[316049372,1709337041369,-500.0,0.00023999,2]
[316049374,1709337041379,-1088.02,0.00023999,2]
[316049376,1709337041390,-500.0,0.00023999,2]
[316049378,1709337041400,-1088.02,0.00023999,2]
[316049381,1709337041411,-1088.02,0.00023999,2]
[316049383,1709337041422,-500.0,0.00023999,2]
[316049385,1709337041433,-1088.02,0.00023999,2]
[316049387,1709337041443,-500.0,0.00023999,2]
[316049389,1709337041453,-1088.02,0.00023999,2]
[316049391,1709337041464,-500.0,0.00023999,2]
[316049394,1709337041475,-1088.02,0.00023999,2]
[316049396,1709337041486,-500.0,0.00023999,2]
[316049398,1709337041496,-1088.02,0.00023999,2]
[316049400,1709337041506,-500.0,0.00023999,2]
[316049402,1709337041515,-1088.02,0.00023999,2]
[316049404,1709337041526,-500.0,0.00023999,2]
[316049406,1709337041536,-1088.02,0.00023999,2]
[316049408,1709337041551,-1088.02,0.00023999,2]
[316049410,1709337041562,-500.0,0.00023999,2]
[316049412,1709337041571,-500.0,0.00023999,2]
[316049415,1709337041582,-1088.02,0.00023999,2]
[316049416,1709337041592,-1088.02,0.00023999,2]
[316049417,1709337041601,-500.0,0.00023999,2]
[316049419,1709337041611,-1088.02,0.00023999,2]
[316049422,1709337041623,-500.0,0.00023999,2]
[316049424,1709337041635,-1088.02,0.00023999,2]
[316049426,1709337041644,-241.0810066,0.00023999,2]
[316049428,1709337041654,-1088.02,0.00023999,2]
[316049430,1709337041665,-1088.02,0.00023999,2]
[316049432,1709337041677,-1088.02,0.00023999,2]
[316049433,1709337041687,-1088.02,0.00023999,2]
[316049435,1709337041697,-1088.22732633,0.00023999,2]
[316049437,1709337041708,-554.24,0.00023999,2]
[316049440,1709337041719,-554.24,0.00023999,2]
[316049442,1709337041729,-1110.11,0.00023999,2]
[316049444,1709337041739,-1110.11,0.00023999,2]
[316049446,1709337041750,-1110.11,0.00023999,2]
[316049448,1709337041761,-1110.11,0.00023999,2]
[316049450,1709337041772,-1110.11,0.00023999,2]
[316049452,1709337041782,-1110.11,0.00023999,2]
[316049454,1709337041792,-1110.11,0.00023999,2]
[316049456,1709337041804,-554.24,0.00023999,2]
[316049458,1709337041814,-1110.11,0.00023999,2]
[316049460,1709337041825,-554.24,0.00023999,2]
[316049462,1709337041836,-1110.11,0.00023999,2]
[316049464,1709337041846,-1110.11,0.00023999,2]
[316049478,1709337041963,-554.24,0.00023999,2]
[316049480,1709337041974,-1110.11,0.00023999,2]
[316049482,1709337041983,-1110.11,0.00023999,2]
[316049484,1709337041992,-554.24,0.00023999,2]
[316049486,1709337042001,-1110.11,0.00023999,2]
[316049487,1709337042011,-554.24,0.00023999,2]
[316049489,1709337042021,-1110.11,0.00023999,2]
[316049491,1709337042031,-554.24,0.00023999,2]
[316049493,1709337042040,-1110.11,0.00023999,2]
[316049495,1709337042049,-554.24,0.00023999,2]
[316049497,1709337042058,-1110.11,0.00023999,2]
[316049499,1709337042069,-554.24,0.00023999,2]
[316049501,1709337042079,-1110.11,0.00023999,2]
[316049503,1709337042088,-554.24,0.00023999,2]
[316049505,1709337042098,-1110.11,0.00023999,2]
[316049507,1709337042107,-554.24,0.00023999,2]
[316049509,1709337042117,-1110.11,0.00023999,2]
[316049511,1709337042126,-554.24,0.00023999,2]
[316049513,1709337042135,-1110.11,0.00023999,2]
[316049515,1709337042144,-554.24,0.00023999,2]
[316049517,1709337042154,-1110.11,0.00023999,2]
[316049519,1709337042163,-554.24,0.00023999,2]
[316049521,1709337042172,-1110.17499399,0.00023999,2]
[316049523,1709337042181,-554.29,0.00023999,2]
[316049524,1709337042190,-500.0,0.00023999,2]
[316049526,1709337042199,-500.0,0.00023999,2]
[316049528,1709337042208,-500.0,0.00023999,2]
[316049530,1709337042217,-500.0,0.00023999,2]
[316049532,1709337042225,-500.0,0.00023999,2]
[316049534,1709337042234,-500.0,0.00023999,2]
[316049536,1709337042243,-500.0,0.00023999,2]
[316049538,1709337042253,-500.0,0.00023999,2]
[316049540,1709337042262,-500.0,0.00023999,2]
[316049542,1709337042272,-500.0,0.00023999,2]
[316049544,1709337042282,-500.0,0.00023999,2]
[316049546,1709337042291,-500.0,0.00023999,2]
[316049548,1709337042300,-500.0,0.00023999,2]
[316049550,1709337042308,-500.0,0.00023999,2]
[316049552,1709337042317,-644.81,0.00023999,2]
[316049553,1709337042326,-936.8,0.00023999,2]
[316049555,1709337042335,-936.8,0.00023999,2]
[316049557,1709337042344,-936.8,0.00023999,2]
[316049559,1709337042354,-936.8,0.00023999,2]
[316049561,1709337042363,-936.8,0.00023999,2]
[316049563,1709337042373,-936.8,0.00023999,2]
[316049565,1709337042382,-936.8,0.00023999,2]
[316049567,1709337042391,-936.8,0.00023999,2]
[316049569,1709337042401,-936.8,0.00023999,2]
[316049571,1709337042410,-936.8,0.00023999,2]
[316049573,1709337042419,-936.8,0.00023999,2]
[316049575,1709337042429,-936.8,0.00023999,2]
[316049577,1709337042438,-936.8,0.00023999,2]
[316049579,1709337042448,-936.8,0.00023999,2]
[316049581,1709337042457,-936.8,0.00023999,2]
[316049583,1709337042466,-936.8,0.00023999,2]
[316049585,1709337042475,-936.8,0.00023999,2]
[316049587,1709337042484,-936.8,0.00023999,2]
[316049589,1709337042493,-936.8,0.00023999,2]
[316049591,1709337042502,-936.8,0.00023999,2]
[316049593,1709337042511,-936.8,0.00023999,2]
[316049595,1709337042520,-936.91711065,0.00023999,2]
[316049597,1709337042532,-336.95,0.00023999,2]
[316049599,1709337042543,-910.78,0.00023999,2]
[316049600,1709337042552,-910.78,0.00023999,2]
[316049602,1709337042561,-910.78,0.00023999,2]
[316049604,1709337042570,-910.78,0.00023999,2]
[316049606,1709337042580,-910.78,0.00023999,2]
[316049608,1709337042589,-910.78,0.00023999,2]
[316049610,1709337042598,-910.78,0.00023999,2]
[316049612,1709337042607,-910.78,0.00023999,2]
[316049614,1709337042617,-910.78,0.00023999,2]
[316049616,1709337042628,-910.78,0.00023999,2]
[316049617,1709337042637,-910.78,0.00023999,2]
[316049618,1709337042646,-910.78,0.00023999,2]
[316049619,1709337042655,-910.78,0.00023999,2]
[316049620,1709337042665,-910.78,0.00023999,2]
[316049621,1709337042674,-910.78,0.00023999,2]
[316049622,1709337042683,-910.78,0.00023999,2]
[316049623,1709337042692,-910.78,0.00023999,2]
[316049624,1709337042701,-910.78,0.00023999,2]
[316049625,1709337042712,-910.78,0.00023999,2]
[316049626,1709337042721,-910.84245189,0.00023999,2]
[316049627,1709337042731,-500.0,0.00023999,2]
[316049628,1709337042741,-500.0,0.00023999,2]
[316049629,1709337042750,-500.0,0.00023999,2]
[316049630,1709337042760,-500.0,0.00023999,2]
[316049631,1709337042769,-500.0,0.00023999,2]
[316049632,1709337042780,-500.0,0.00023999,2]
[316049633,1709337042789,-500.82,0.00023999,2]
[316049634,1709337042798,-160630.71742035,0.00024,5]
[316049635,1709337042815,-4670.46630263,0.00024,5]
[316049636,1709337042827,-6434.63447827,0.00024,5]
[316049637,1709337042838,-20507.29836038,0.00024,5]
[316049651,1709337043017,-500.0,0.00020882,2]
[316049653,1709337043028,-299.57957984,0.00023513,2]
[316049953,1709337046670,-1319.29172324,0.00021899,2]
[316049955,1709337046680,-200.42042016,0.00023513,2]
[316049957,1709337046690,-500.0,0.00023943,2]
[316049959,1709337046699,-1231.32,0.00023989,3]
[316049961,1709337046708,-705.04,0.00023998,2]
[316049963,1709337046717,-705.04,0.00023998,2]
[316049965,1709337046726,-500.0,0.00023998,2]
[316049967,1709337046735,-673.08004308,0.00023998,2]
[316050349,1709338238630,-1158.95653593,0.00019978,2]
[316050350,1709338238676,-1274.10210263,0.00019978,2]
[316050351,1709338238685,-478.92010743,0.00019979,2]
[316050352,1709338238695,-289.03457798,0.0002,2]
[316050353,1709338238704,-601.92,0.00020791,3]
[316050354,1709338238713,-500.0,0.000208,2]
[316050355,1709338238723,-500.0,0.000208,2]
[316050356,1709338238732,-500.0,0.000208,2]
[316050357,1709338238742,-314.33733289,0.000208,2]
[316050358,1709338238753,-590.59055546,0.000208,2]
[316050359,1709338238763,-500.0,0.000208,2]
[316050362,1709338238774,-500.0,0.000208,2]
[316050363,1709338238784,-500.59452776,0.000208,2]
[316050364,1709338238794,-500.0,0.000208,2]
[316050365,1709338238803,-500.0,0.000208,2]
[316050366,1709338238812,-500.0,0.000208,2]
[316050367,1709338238821,-798.6,0.000208,2]
[316050368,1709338238830,-798.6,0.000208,2]
[316050369,1709338238839,-798.6,0.000208,2]
[316050370,1709338238849,-509.45,0.000208,2]
[316050371,1709338238858,-509.45,0.000208,2]
[316050372,1709338238868,-509.45,0.000208,2]
[316050373,1709338238877,-1054.68,0.000208,2]
[316050374,1709338238886,-1054.68,0.000208,2]
[316050375,1709338238899,-1054.68,0.000208,2]
[316050376,1709338238908,-500.0,0.000208,2]
[316050377,1709338238918,-500.0,0.000208,2]
[316050378,1709338238928,-500.0,0.000208,2]
[316050379,1709338238938,-500.0,0.000208,2]
[316050380,1709338238947,-500.0,0.000208,2]
[316050381,1709338238957,-500.0,0.000208,2]
[316050382,1709338238966,-280.07,0.000208,2]
[316050383,1709338238978,-500.0,0.000208,2]
[316050384,1709338238991,-500.0,0.000208,2]
[316050385,1709338239002,-500.0,0.000208,2]
[316050386,1709338239014,-500.0,0.000208,2]
[316050387,1709338239028,-502.55102291,0.000208,2]
[316050388,1709338239039,-503.20960449,0.000208,2]
[316050389,1709338239051,-500.7038802,0.000208,2]
[316050390,1709338239061,-741.63,0.000208,2]
[316050391,1709338239071,-741.63,0.000208,2]
[316050392,1709338239094,-741.63,0.000208,2]
[316050393,1709338239107,-331.17941528,0.000208,2]
[316050394,1709338239121,-500.0,0.000208,2]
[316050395,1709338239134,-500.0,0.000208,2]
[316050396,1709338239146,-500.0,0.000208,2]
[316050397,1709338239158,-795.2,0.000208,2]
[316050398,1709338239169,-795.2,0.000208,2]
[316050399,1709338239181,-795.2,0.000208,2]
[316050400,1709338239193,-500.0,0.000208,2]
[316050402,1709338239205,-500.0,0.000208,2]
[316050403,1709338239216,-500.0,0.000208,2]
[316050404,1709338239227,-336.95,0.000208,2]
[316050405,1709338239238,-500.0,0.000208,2]
[316050406,1709338239250,-500.0,0.000208,2]
[316050407,1709338239260,-500.0,0.000208,2]
[316050408,1709338239271,-500.0,0.000208,2]
[316050409,1709338239281,-500.77215943,0.000208,2]
[316050410,1709338239291,-500.0,0.000208,2]
[316050411,1709338239301,-500.0,0.000208,2]